fUSD/lending_fUSD_20260613
["ID","MTS","AMOUNT","RATE_DAILY","PERIOD"]
[424965842,1781358661000,-359.26,0.000301,2]
[424965836,1781358661000,-613.17498191,0.00030047,7]
[424965829,1781358661000,-458.50497345,0.00030044,7]
[424965830,1781358661000,-343.85465998,0.00030047,7]
[424965828,1781358661000,-635.08045537,0.00030043,7]
[424965827,1781358661000,-602.25186667,0.00030043,7]
[424965833,1781358661000,-607.00076062,0.00030047,2]
[424965831,1781358661000,-734.68448322,0.00030047,7]
[424965832,1781358661000,-684.38566557,0.00030047,7]
[424965834,1781358661000,-740.70391977,0.00030047,7]
[424965835,1781358661000,-602.17451105,0.00030047,7]
[424965838,1781358661000,-2808.57,0.00030064,2]
[424965848,1781358661000,-22500.0,0.00030125,2]
[424965837,1781358661000,-848.91090539,0.00030047,7]
[424965825,1781358661000,-767.00979301,0.00030043,7]
[424965871,1781358661000,-494.0,0.00030131,30]
[424965925,1781358661000,-590.97407801,0.00030245,7]
[424965873,1781358661000,-377.84,0.00030133,7]
[424965903,1781358661000,-849.24,0.00030137,120]
[424965902,1781358661000,-150.0,0.00030137,2]
[424965900,1781358661000,-593.63678425,0.00030137,7]
[424965901,1781358661000,-791.51571233,0.00030137,7]
[424965899,1781358661000,-395.75785616,0.00030137,7]
[424965908,1781358661000,-424.11768488,0.00030167,7]
[424965910,1781358661000,-503.0,0.000302,120]
[424965916,1781358661000,-162.35773978,0.00030233,7]
[424965913,1781358661000,-714.0,0.000302,120]
[424965917,1781358661000,-341.69386999,0.00030233,7]
[424965914,1781358661000,-2488.49022785,0.00030204,7]
[424965911,1781358661000,-800.0,0.000302,120]
[424965904,1781358661000,-495.69,0.00030137,2]
[424965915,1781358661000,-14489.23468167,0.00030204,7]
[424965918,1781358661000,-564.64389319,0.00030233,7]
[424965909,1781358661000,-15834.83790339,0.000302,2]
[424965919,1781358661000,-1139.4311438,0.00030239,2]
[424965921,1781358661000,-166.89114415,0.00030245,7]
[424965920,1781358661000,-362.3,0.00030239,2]
[424965923,1781358661000,-165.44373856,0.00030245,7]
[424965927,1781358661000,-2500.0,0.0003025,2]
[424965922,1781358661000,-173.5723746,0.00030245,7]
[424965924,1781358661000,-268.73636807,0.00030245,7]
[424965928,1781358661000,-22500.0,0.0003025,2]
[424965870,1781358661000,-152.0,0.00030131,30]
[424965926,1781358661000,-151.0,0.00030247,7]
[424965912,1781358661000,-800.0,0.000302,120]
[424965897,1781358661000,-236.86555584,0.00030137,7]
[424965929,1781358661000,-25000.0,0.0003025,2]
[424965896,1781358661000,-240.24903027,0.00030137,40]
[424965906,1781358661000,-3185.43361248,0.00030141,7]
[424965879,1781358661000,-1000.0,0.00030136,120]
[424965874,1781358661000,-333.0,0.00030133,30]
[424965881,1781358661000,-1000.0,0.00030136,120]
[424965876,1781358661000,-212.0,0.00030133,30]
[424965882,1781358661000,-1000.0,0.00030136,120]
[424965880,1781358661000,-1000.0,0.00030136,120]
[424965877,1781358661000,-185.64476922,0.00030134,2]
[424965878,1781358661000,-1000.0,0.00030136,120]
[424965875,1781358661000,-1784.0,0.00030133,30]
[424965872,1781358661000,-187.0,0.00030131,30]
[424965884,1781358661000,-1000.0,0.00030136,120]
[424965885,1781358661000,-1000.0,0.00030136,120]
[424965883,1781358661000,-1000.0,0.00030136,120]
[424965895,1781358661000,-1000.0,0.00030137,50]
[424965905,1781358661000,-495.69,0.00030137,30]
[424965907,1781358661000,-3326.33608515,0.00030141,7]
[424965898,1781358661000,-197.87892808,0.00030137,7]
[424965894,1781358661000,-150.0,0.00030137,120]
[424965886,1781358661000,-1069.74654066,0.00030136,120]
[424965887,1781358661000,-166.41796081,0.00030136,120]
[424965891,1781358661000,-10000.0,0.00030137,30]
[424965890,1781358661000,-320.0,0.00030137,15]
[424965892,1781358661000,-3726.0,0.00030137,120]
[424965888,1781358661000,-1975.53397638,0.00030136,120]
[424965889,1781358661000,-4009.0,0.00030137,30]
[424965893,1781358661000,-600.0,0.00030137,30]
[424965970,1781358662000,-1598.331557,0.00030375,7]
[424965966,1781358662000,-162.032497,0.00030375,7]
[424965963,1781358662000,-184.412109,0.00030375,7]
[424965967,1781358662000,-162.032497,0.00030375,7]
[424965958,1781358662000,-151.0,0.00030375,7]
[424965960,1781358662000,-184.412109,0.00030375,7]
[424965962,1781358662000,-184.412109,0.00030375,7]
[424965959,1781358662000,-151.0,0.00030375,7]
[424965961,1781358662000,-184.412109,0.00030375,7]
[424965965,1781358662000,-151.0,0.00030375,7]
[424965964,1781358662000,-22500.0,0.00030375,2]
[424965973,1781358662000,-1598.331557,0.00030375,7]
[424965969,1781358662000,-162.032497,0.00030375,7]
[424965971,1781358662000,-1598.331557,0.00030375,7]
[424965974,1781358662000,-794.763169,0.00030375,7]
[424965972,1781358662000,-1598.331557,0.00030375,7]
[424965976,1781358662000,-794.763169,0.00030375,7]
[424965983,1781358662000,-866.624057,0.00030375,7]
[424965985,1781358662000,-866.624057,0.00030375,7]
[424965978,1781358662000,-1157.771403,0.00030375,7]
[424965979,1781358662000,-866.624057,0.00030375,7]
[424965975,1781358662000,-794.763169,0.00030375,7]
[424965956,1781358662000,-151.283773,0.00030375,7]
[424965968,1781358662000,-162.032497,0.00030375,7]
[424965957,1781358662000,-12500.0,0.00030375,2]
[424965947,1781358662000,-164.51726787,0.00030296,7]
[424965952,1781358662000,-10000.0,0.00030333,2]
[424965982,1781358662000,-1157.771403,0.00030375,7]
[424965931,1781358662000,-2500.0,0.0003025,2]
[424965930,1781358662000,-12500.0,0.0003025,2]
[424965932,1781358662000,-12500.0,0.0003025,2]
[424965934,1781358662000,-2500.0,0.0003025,2]
[424965933,1781358662000,-24999.97,0.0003025,2]
[424965937,1781358662000,-25000.0,0.0003025,2]
[424965936,1781358662000,-2500.0,0.0003025,2]
[424965935,1781358662000,-12500.0,0.0003025,2]
[424965940,1781358662000,-25000.0,0.0003025,2]
[424965938,1781358662000,-22500.0,0.0003025,2]
[424965955,1781358662000,-11959.88,0.00030375,2]
[424965939,1781358662000,-25000.0,0.0003025,2]
[424965942,1781358662000,-487.67270059,0.00030256,7]
[424965943,1781358662000,-477.90946692,0.00030256,7]
[424965944,1781358662000,-251.52787411,0.00030256,7]
[424965945,1781358662000,-169.46065684,0.00030256,7]
[424965951,1781358662000,-165.43,0.000303,7]
[424965949,1781358662000,-430.89988747,0.00030297,7]
[424965946,1781358662000,-166.70145051,0.00030296,7]
[424965950,1781358662000,-486.7296808,0.00030297,7]
[424965948,1781358662000,-497.56993207,0.00030297,7]
[424965953,1781358662000,-22500.0,0.00030375,2]
[424965954,1781358662000,-12500.0,0.00030375,2]
[424965941,1781358662000,-163.78566837,0.00030256,7]
[424965980,1781358662000,-1157.771403,0.00030375,7]
[424965977,1781358662000,-794.763169,0.00030375,7]
[424965981,1781358662000,-866.624057,0.00030375,7]
[424966010,1781358662000,-320.0,0.0003057,16]
[424966014,1781358662000,-915.36455181,0.00030613,7]
[424966011,1781358662000,-165.43,0.000306,7]
[424966015,1781358662000,-845.77005761,0.00030613,7]
[424966017,1781358662000,-771.63025177,0.00030613,7]
[424966019,1781358662000,-843.30453086,0.00030616,7]
[424966016,1781358662000,-986.13779624,0.00030613,7]
[424966021,1781358662000,-871.60788816,0.00030616,7]
[424966023,1781358662000,-1024.45431258,0.00030616,7]
[424966020,1781358662000,-987.69339524,0.00030616,7]
[424966029,1781358662000,-768.5138273,0.00030616,7]
[424966018,1781358662000,-779.44326925,0.00030616,7]
[424966022,1781358662000,-1261.15245676,0.00030616,7]
[424966027,1781358662000,-804.74427646,0.00030616,5]
[424966028,1781358662000,-962.32273421,0.00030616,7]
[424966024,1781358662000,-1393.11463373,0.00030616,7]
[424966026,1781358662000,-832.93634901,0.00030616,7]
[424966034,1781358662000,-805.37511024,0.00030616,7]
[424966035,1781358662000,-811.18805168,0.00030616,7]
[424966033,1781358662000,-831.52402741,0.00030616,7]
[424966031,1781358662000,-957.68163551,0.00030616,7]
[424966030,1781358662000,-806.71201481,0.00030616,7]
[424966036,1781358662000,-947.56311539,0.00030617,7]
[424966037,1781358662000,-1011.9228077,0.00030617,7]
[424966025,1781358662000,-784.29634243,0.00030616,7]
[424966013,1781358662000,-844.72478706,0.00030613,7]
[424966032,1781358662000,-766.17949006,0.00030616,7]
[424966012,1781358662000,-1031.0693985,0.00030613,7]
[424966009,1781358662000,-2808.57,0.00030564,2]
[424965984,1781358662000,-1157.771403,0.00030375,7]
[424965986,1781358662000,-151.0,0.00030375,7]
[424965988,1781358662000,-511.01601053,0.00030384,120]
[424965994,1781358662000,-3323.7647055,0.000305,120]
[424965995,1781358662000,-2500.0,0.000305,2]
[424965991,1781358662000,-212.0,0.00030414,3]
[424965992,1781358662000,-350.0,0.00030424,16]
[424965993,1781358662000,-10000.0,0.000305,15]
[424965989,1781358662000,-941.38261542,0.000304,2]
[424965990,1781358662000,-501.0,0.000304,13]
[424965996,1781358662000,-22500.0,0.000305,2]
[424965987,1781358662000,-338.22398947,0.00030384,120]
[424965997,1781358662000,-25000.0,0.000305,2]
[424965998,1781358662000,-2500.0,0.000305,2]
[424966002,1781358662000,-2500.0,0.000305,2]
[424966001,1781358662000,-151.0,0.000305,7]
[424966004,1781358662000,-22500.0,0.000305,2]
[424966005,1781358662000,-151.0,0.000305,7]
[424966006,1781358662000,-151.0,0.000305,7]
[424966007,1781358662000,-25000.0,0.000305,2]
[424966000,1781358662000,-151.0,0.000305,7]
[424965999,1781358662000,-2500.0,0.000305,2]
[424966003,1781358662000,-25000.0,0.000305,2]
[424966008,1781358662000,-497.30480127,0.0003056,120]
[424966064,1781358663000,-2500.0,0.0003075,2]
[424966065,1781358663000,-2500.0,0.0003075,2]
[424966075,1781358663000,-151.0,0.00030836,2]
[424966067,1781358663000,-22500.0,0.0003075,2]
[424966060,1781358663000,-989.39464041,0.00030711,7]
[424966068,1781358663000,-25000.0,0.0003075,2]
[424966066,1781358663000,-25000.0,0.0003075,2]
[424966069,1781358663000,-4400.139518,0.0003075,7]
[424966071,1781358663000,-4400.139518,0.0003075,7]
[424966076,1781358663000,-151.0,0.00030836,2]
[424966074,1781358663000,-151.0,0.00030836,2]
[424966072,1781358663000,-4400.139518,0.0003075,7]
[424966073,1781358663000,-213.41,0.000308,30]
[424966077,1781358663000,-151.0,0.00030838,2]
[424966081,1781358663000,-151.0,0.00030838,2]
[424966080,1781358663000,-151.0,0.00030838,2]
[424966084,1781358663000,-151.0,0.00030838,2]
[424966062,1781358663000,-22500.0,0.0003075,2]
[424966078,1781358663000,-151.0,0.00030838,2]
[424966070,1781358663000,-4400.139518,0.0003075,7]
[424966061,1781358663000,-2500.0,0.0003075,2]
[424966044,1781358663000,-860.8931334,0.00030617,7]
[424966059,1781358663000,-1734.26,0.00030679,2]
[424966083,1781358663000,-151.0,0.00030838,2]
[424966038,1781358663000,-869.31064182,0.00030617,7]
[424966045,1781358663000,-958.76224127,0.00030617,7]
[424966046,1781358663000,-776.48381664,0.00030617,7]
[424966043,1781358663000,-793.39171139,0.00030617,7]
[424966042,1781358663000,-791.96517327,0.00030617,7]
[424966041,1781358663000,-920.8392649,0.00030617,7]
[424966047,1781358663000,-752.81483334,0.00030617,7]
[424966048,1781358663000,-918.35560403,0.00030621,7]
[424966063,1781358663000,-25000.0,0.0003075,2]
[424966040,1781358663000,-884.08477627,0.00030617,7]
[424966050,1781358663000,-925.87989971,0.00030621,7]
[424966049,1781358663000,-855.48208196,0.00030621,7]
[424966053,1781358663000,-22500.0,0.00030625,2]
[424966052,1781358663000,-766.46872739,0.00030621,7]
[424966055,1781358663000,-849.24,0.0003063,120]
[424966054,1781358663000,-22500.0,0.00030625,2]
[424966058,1781358663000,-173.0767761,0.00030672,2]
[424966057,1781358663000,-10000.0,0.00030667,2]
[424966056,1781358663000,-495.69,0.00030635,30]
[424966051,1781358663000,-752.71813881,0.00030621,7]
[424966082,1781358663000,-151.0,0.00030838,2]
[424966039,1781358663000,-952.88168716,0.00030617,7]
[424966085,1781358663000,-151.0,0.00030838,2]
[424966108,1781358663000,-150.0,0.00030841,2]
[424966110,1781358663000,-22500.0,0.00030875,2]
[424966109,1781358663000,-22500.0,0.00030875,2]
[424966114,1781358663000,-1865.06,0.0003096,2]
[424966113,1781358663000,-1000.0,0.0003096,2]
[424966116,1781358663000,-1746.03,0.0003096,2]
[424966115,1781358663000,-1000.0,0.0003096,2]
[424966121,1781358663000,-272.0,0.00030992,2]
[424966120,1781358663000,-320.0,0.00030991,18]
[424966112,1781358663000,-151.39143128,0.00030959,2]
[424966119,1781358663000,-1483.71,0.0003096,2]
[424966122,1781358663000,-50000.0,0.00031,9]
[424966123,1781358663000,-50000.0,0.00031,2]
[424966126,1781358663000,-3001.62320297,0.00031,30]
[424966128,1781358663000,-500.63270612,0.00031,120]
[424966129,1781358663000,-351.57934039,0.00031,5]
[424966124,1781358663000,-13000.0,0.00031,2]
[424966127,1781358663000,-20123.56001565,0.00031,14]
[424966125,1781358663000,-40020.06271336,0.00031,2]
[424966079,1781358663000,-151.0,0.00030838,2]
[424966117,1781358663000,-1698.41,0.0003096,2]
[424966107,1781358663000,-202.0,0.0003084,30]
[424966118,1781358663000,-1000.0,0.0003096,2]
[424966105,1781358663000,-151.0,0.00030839,2]
[424966111,1781358663000,-165.43,0.000309,7]
[424966087,1781358663000,-151.0,0.00030839,2]
[424966088,1781358663000,-151.0,0.00030839,2]
[424966089,1781358663000,-151.0,0.00030839,2]
[424966090,1781358663000,-151.0,0.00030839,2]
[424966094,1781358663000,-151.0,0.00030839,2]
[424966093,1781358663000,-151.0,0.00030839,2]
[424966092,1781358663000,-151.0,0.00030839,2]
[424966091,1781358663000,-151.0,0.00030839,2]
[424966096,1781358663000,-151.0,0.00030839,2]
[424966086,1781358663000,-151.0,0.00030838,2]
[424966101,1781358663000,-151.0,0.00030839,2]
[424966095,1781358663000,-151.0,0.00030839,2]
[424966104,1781358663000,-151.0,0.00030839,2]
[424966097,1781358663000,-151.0,0.00030839,2]
[424966100,1781358663000,-151.0,0.00030839,2]
[424966106,1781358663000,-1640.56294027,0.0003084,2]
[424966102,1781358663000,-151.0,0.00030839,2]
[424966099,1781358663000,-151.0,0.00030839,2]
[424966103,1781358663000,-151.0,0.00030839,2]
[424966098,1781358663000,-151.0,0.00030839,2]
[424966165,1781358664000,-350.0,0.00031167,18]
[424966157,1781358664000,-312.0,0.00031131,30]
[424966156,1781358664000,-1178.0,0.00031131,30]
[424966158,1781358664000,-152.0,0.00031131,30]
[424966159,1781358664000,-494.0,0.00031131,30]
[424966162,1781358664000,-333.0,0.00031133,30]
[424966154,1781358664000,-173.0,0.00031131,30]
[424966160,1781358664000,-187.0,0.00031131,30]
[424966163,1781358664000,-1784.0,0.00031133,30]
[424966169,1781358664000,-165.43,0.000312,7]
[424966166,1781358664000,-150.311911,0.00031191,2]
[424966164,1781358664000,-212.0,0.00031133,30]
[424966167,1781358664000,-500.0,0.00031192,60]
[424966173,1781358664000,-2500.0,0.0003125,2]
[424966170,1781358664000,-581.537294,0.00031205,120]
[424966168,1781358664000,-454.60166567,0.00031195,2]
[424966175,1781358664000,-14302.26,0.0003125,2]
[424966171,1781358664000,-9540.45921972,0.0003121,2]
[424966152,1781358664000,-501.0,0.00031129,14]
[424966161,1781358664000,-495.69,0.00031133,30]
[424966150,1781358664000,-160.0,0.00031129,30]
[424966130,1781358664000,-2500.0,0.00031,32]
[424966151,1781358664000,-182.0,0.00031129,30]
[424966132,1781358664000,-4990.0,0.00031,15]
[424966134,1781358664000,-2500.0,0.00031,2]
[424966131,1781358664000,-2500.0,0.00031,2]
[424966133,1781358664000,-3000.0,0.00031,30]
[424966135,1781358664000,-22500.0,0.00031,2]
[424966139,1781358664000,-216.029201,0.00031,30]
[424966136,1781358664000,-25000.0,0.00031,2]
[424966138,1781358664000,-2500.0,0.00031,2]
[424966137,1781358664000,-2500.0,0.00031,2]
[424966155,1781358664000,-578.0,0.00031131,30]
[424966141,1781358664000,-25000.0,0.00031,2]
[424966143,1781358664000,-7306.43750705,0.00031095,3]
[424966142,1781358664000,-497.30480127,0.0003107,120]
[424966147,1781358664000,-22500.0,0.00031125,2]
[424966144,1781358664000,-3000.0,0.000311,2]
[424966148,1781358664000,-22500.0,0.00031125,2]
[424966145,1781358664000,-6990.0,0.00031111,15]
[424966146,1781358664000,-5000.0,0.00031111,15]
[424966149,1781358664000,-315.0,0.00031129,30]
[424966153,1781358664000,-223.0,0.00031131,30]
[424966140,1781358664000,-22500.0,0.00031,2]
[424966172,1781358664000,-2808.57,0.0003123,4]
[424966174,1781358664000,-22500.0,0.0003125,2]
[424966181,1781358664000,-7999.57,0.00031375,2]
[424966202,1781358664000,-1033.07176008,0.00031478,7]
[424966203,1781358664000,-952.07005367,0.00031478,7]
[424966205,1781358664000,-903.37780001,0.00031478,7]
[424966206,1781358664000,-1102.02672483,0.00031482,7]
[424966209,1781358664000,-2499.98,0.000315,2]
[424966208,1781358664000,-2500.0,0.000315,2]
[424966210,1781358664000,-2500.0,0.000315,2]
[424966214,1781358664000,-1338.57,0.000315,20]
[424966215,1781358664000,-1338.57,0.000315,20]
[424966199,1781358664000,-1143.45802459,0.00031478,7]
[424966207,1781358664000,-903.26176658,0.00031482,7]
[424966212,1781358664000,-201.17376517,0.000315,2]
[424966216,1781358664000,-1512.62,0.000315,30]
[424966221,1781358664000,-1291.91,0.000315,10]
[424966217,1781358664000,-1511.74,0.000315,20]
[424966218,1781358664000,-1511.74,0.000315,20]
[424966220,1781358664000,-1291.914,0.000315,30]
[424966219,1781358664000,-1291.914,0.000315,20]
[424966222,1781358664000,-165.43,0.000315,7]
[424966176,1781358664000,-2500.0,0.0003125,2]
[424966213,1781358664000,-150.0,0.000315,2]
[424966204,1781358664000,-1150.51468952,0.00031478,7]
[424966211,1781358664000,-22500.0,0.000315,2]
[424966201,1781358664000,-1060.90173153,0.00031478,7]
[424966180,1781358664000,-476.45167592,0.00031308,6]
[424966197,1781358664000,-968.05441777,0.00031477,7]
[424966179,1781358664000,-1399.29937693,0.00031265,120]
[424966177,1781358664000,-2500.0,0.0003125,2]
[424966178,1781358664000,-22500.0,0.0003125,2]
[424966182,1781358664000,-22500.0,0.00031375,2]
[424966184,1781358664000,-300.0,0.000314,120]
[424966183,1781358664000,-320.0,0.000314,19]
[424966186,1781358664000,-925.95630213,0.00031474,7]
[424966191,1781358664000,-1229.3451751,0.00031476,7]
[424966187,1781358664000,-935.3319231,0.00031476,7]
[424966185,1781358664000,-1013.66974447,0.00031474,7]
[424966196,1781358664000,-1149.21796261,0.00031477,7]
[424966189,1781358664000,-1045.92946579,0.00031476,7]
[424966188,1781358664000,-1011.96543703,0.00031476,7]
[424966194,1781358664000,-965.69313176,0.00031477,5]
[424966192,1781358664000,-1671.73756047,0.00031476,7]
[424966193,1781358664000,-941.15561092,0.00031476,7]
[424966195,1781358664000,-922.21659276,0.00031477,7]
[424966198,1781358664000,-966.45013229,0.00031477,7]
[424966190,1781358664000,-1513.38294811,0.00031476,7]
[424966200,1781358664000,-1043.17277018,0.00031478,7]
[424966255,1781358665000,-151.0,0.00031661,2]
[424966253,1781358665000,-644.0,0.00031661,2]
[424966250,1781358665000,-151.0,0.00031661,2]
[424966254,1781358665000,-151.0,0.00031661,2]
[424966248,1781358665000,-151.0,0.0003166,2]
[424966251,1781358665000,-151.0,0.00031661,2]
[424966249,1781358665000,-151.0,0.00031661,2]
[424966258,1781358665000,-573.32,0.00031661,2]
[424966252,1781358665000,-573.14,0.00031661,2]
[424966259,1781358665000,-185.09,0.0003167,2]
[424966267,1781358665000,-501.0,0.00031859,14]
[424966257,1781358665000,-151.0,0.00031661,2]
[424966264,1781358665000,-183.30106577,0.00031785,120]
[424966263,1781358665000,-22500.0,0.0003175,2]
[424966260,1781358665000,-573.22,0.00031683,2]
[424966262,1781358665000,-2500.0,0.0003175,2]
[424966261,1781358665000,-2500.0,0.0003175,2]
[424966265,1781358665000,-165.43,0.000318,7]
[424966266,1781358665000,-941.38261542,0.000318,2]
[424966268,1781358665000,-1130.8036055,0.0003186,2]
[424966247,1781358665000,-151.0,0.0003166,2]
[424966256,1781358665000,-151.0,0.00031661,2]
[424966245,1781358665000,-573.37,0.0003166,2]
[424966223,1781358665000,-185.64476922,0.00031503,2]
[424966241,1781358665000,-151.0,0.00031658,2]
[424966271,1781358665000,-557.567756,0.00031881,120]
[424966225,1781358665000,-569.466919,0.00031543,120]
[424966224,1781358665000,-1000.0,0.00031507,60]
[424966226,1781358665000,-150.0,0.0003161,2]
[424966227,1781358665000,-150.0,0.0003161,2]
[424966228,1781358665000,-150.0,0.0003161,2]
[424966231,1781358665000,-188.45686017,0.0003161,2]
[424966230,1781358665000,-150.0,0.0003161,2]
[424966229,1781358665000,-150.0,0.0003161,2]
[424966232,1781358665000,-2245.3,0.00031621,14]
[424966234,1781358665000,-495.69,0.00031631,30]
[424966233,1781358665000,-22500.0,0.00031625,2]
[424966236,1781358665000,-150.0,0.00031644,2]
[424966235,1781358665000,-227.66981308,0.00031644,40]
[424966240,1781358665000,-185.12,0.00031658,2]
[424966244,1781358665000,-151.0,0.0003166,2]
[424966243,1781358665000,-151.0,0.0003166,2]
[424966242,1781358665000,-151.0,0.00031658,2]
[424966239,1781358665000,-151.0,0.00031658,2]
[424966238,1781358665000,-151.0,0.00031658,2]
[424966237,1781358665000,-497.30480127,0.00031651,120]
[424966246,1781358665000,-151.0,0.0003166,2]
[424966273,1781358665000,-2013.81,0.000319,10]
[424966285,1781358665000,-151.0,0.00031997,7]
[424966269,1781358665000,-22500.0,0.00031875,2]
[424966299,1781358665000,-161.2155328,0.00032,120]
[424966297,1781358665000,-512.24190356,0.00032,120]
[424966303,1781358665000,-192.57928027,0.00032,120]
[424966302,1781358665000,-788.71349844,0.00032,120]
[424966301,1781358665000,-172.5727479,0.00032,120]
[424966300,1781358665000,-188.398215,0.00032,120]
[424966304,1781358665000,-887.42224295,0.00032,120]
[424966305,1781358665000,-185.65194979,0.00032,120]
[424966311,1781358665000,-8107.26304598,0.00032,7]
[424966306,1781358665000,-181.3074543,0.00032,120]
[424966310,1781358665000,-502.0,0.00032,120]
[424966308,1781358665000,-700.0,0.00032,120]
[424966307,1781358665000,-189.9214738,0.00032,120]
[424966312,1781358665000,-3536.2947377,0.00032,120]
[424966313,1781358665000,-9360.0,0.00032,15]
[424966314,1781358665000,-214412.35740423,0.00032,7]
[424966318,1781358665000,-151.0,0.00032,7]
[424966317,1781358665000,-700.0,0.00032,2]
[424966316,1781358665000,-365042.7067443,0.00032,10]
[424966315,1781358665000,-518543.47634,0.00032,30]
[424966270,1781358665000,-350.0,0.00031881,21]
[424966296,1781358665000,-174.6254819,0.00032,120]
[424966298,1781358665000,-506.74040645,0.00032,120]
[424966309,1781358665000,-2500.0,0.00032,33]
[424966294,1781358665000,-164.58473457,0.00032,120]
[424966272,1781358665000,-600.5,0.000319,120]
[424966295,1781358665000,-188.6840366,0.00032,120]
[424966274,1781358665000,-2013.81,0.000319,30]
[424966276,1781358665000,-1761.172,0.000319,30]
[424966275,1781358665000,-1761.172,0.000319,30]
[424966280,1781358665000,-152.0,0.000319,3]
[424966277,1781358665000,-1761.17,0.000319,20]
[424966282,1781358665000,-2366.95391626,0.000319,2]
[424966278,1781358665000,-309.5558,0.000319,30]
[424966283,1781358665000,-5281.8671271,0.00031924,2]
[424966279,1781358665000,-162.75163734,0.000319,30]
[424966281,1781358665000,-152.0,0.000319,5]
[424966291,1781358665000,-192.78067843,0.00032,120]
[424966284,1781358665000,-525.44,0.00031939,2]
[424966286,1781358665000,-50000.0,0.00032,10]
[424966287,1781358665000,-9131.01605209,0.00032,31]
[424966290,1781358665000,-189.39016739,0.00032,120]
[424966289,1781358665000,-3962.18,0.00032,2]
[424966293,1781358665000,-162.88044551,0.00032,120]
[424966288,1781358665000,-2500.0,0.00032,2]
[424966319,1781358665000,-151.0,0.00032,7]
[424966292,1781358665000,-409.26081717,0.00032,120]
[424966353,1781358666000,-495.69,0.0003213,30]
[424966352,1781358666000,-182.0,0.00032129,30]
[424966349,1781358666000,-10000.0,0.00032111,15]
[424966346,1781358666000,-1157.771403,0.00032,7]
[424966345,1781358666000,-866.624057,0.00032,7]
[424966350,1781358666000,-315.0,0.00032129,30]
[424966348,1781358666000,-152.62784294,0.00032031,2]
[424966362,1781358666000,-312.0,0.00032131,30]
[424966351,1781358666000,-160.0,0.00032129,30]
[424966354,1781358666000,-4400.139518,0.00032131,7]
[424966363,1781358666000,-152.0,0.00032131,30]
[424966360,1781358666000,-578.0,0.00032131,30]
[424966357,1781358666000,-4400.139518,0.00032131,7]
[424966359,1781358666000,-173.0,0.00032131,30]
[424966355,1781358666000,-4400.139518,0.00032131,7]
[424966361,1781358666000,-1178.0,0.00032131,30]
[424966356,1781358666000,-4400.139518,0.00032131,7]
[424966364,1781358666000,-494.0,0.00032131,30]
[424966372,1781358666000,-254.0,0.00032203,3]
[424966365,1781358666000,-187.0,0.00032131,30]
[424966347,1781358666000,-866.624057,0.00032,7]
[424966358,1781358666000,-223.0,0.00032131,30]
[424966344,1781358666000,-1157.771403,0.00032,7]
[424966323,1781358666000,-184.412109,0.00032,7]
[424966342,1781358666000,-1157.771403,0.00032,7]
[424966370,1781358666000,-320.0,0.00032183,23]
[424966320,1781358666000,-151.0,0.00032,7]
[424966322,1781358666000,-184.412109,0.00032,7]
[424966321,1781358666000,-151.0,0.00032,7]
[424966324,1781358666000,-184.412109,0.00032,7]
[424966325,1781358666000,-184.412109,0.00032,7]
[424966327,1781358666000,-151.0,0.00032,7]
[424966326,1781358666000,-154.309099,0.00032,7]
[424966328,1781358666000,-162.032497,0.00032,7]
[424966329,1781358666000,-162.032497,0.00032,7]